bitfinex/quotes_SOLUSD_20250308
["timestamp","ask_amount","ask_price","bid_price","bid_amount"]
[1741399885188,0.03,140.04,140.01,20.99215228]
[1741399886968,82.3,140.03,140.01,20.99215228]
[1741399888387,82.3,140.03,139.99,0.033]
[1741399888388,82.3,140.03,140.02,20.99215228]
[1741399888783,82.3,140.03,140.0,7.1424]
[1741399888955,88.7274,140.03,139.99,0.033]
[1741399889157,103.29215228,140.02,139.99,0.033]
[1741399890051,82.3,140.02,139.99,0.033]
[1741399890279,6.4285,140.0,139.99,0.033]
[1741399891386,27.42065228,140.0,139.99,0.033]
[1741399892065,6.4285,140.0,139.99,0.033]
[1741399893392,24.49,140.03,139.99,0.033]
[1741399893393,6.4279,140.02,139.99,0.033]
[1741399894070,20.99215228,140.01,139.99,0.033]
[1741399894383,6.4285,140.0,139.99,0.033]
[1741399895371,27.42025228,140.02,139.99,0.033]
[1741399896989,20.99215228,140.0,139.92,1.5543]
[1741399897190,20.99215228,139.97,139.91,27.46925228]
[1741399897360,20.99215228,139.95,139.9,0.033]
[1741399898485,20.99215228,139.96,139.9,21.02515228]
[1741399900279,27.42155228,139.98,139.92,20.99215228]
[1741399901492,20.99215228,139.97,139.91,20.99215228]
[1741399901668,27.42165228,139.98,139.92,20.99215228]
[1741399902394,6.4295,139.98,139.93,20.99215228]
[1741399902997,82.3,139.95,139.93,20.99215228]
[1741399903576,82.3,139.95,139.93,28.13845228]
[1741399904301,82.3,139.95,139.94,20.99215228]
[1741399905369,82.3,139.95,139.93,27.60225228]
[1741399905571,82.3,139.95,139.94,20.99215228]
[1741399906890,82.3,139.95,139.93,13.7564]
[1741399907095,82.3,139.95,139.93,34.74855228]
[1741399907300,82.3,139.95,139.94,20.99215228]
[1741399908402,82.3,139.95,139.93,34.74845228]
[1741399908585,82.3,139.95,139.94,20.99215228]
[1741399909370,82.3,139.95,139.93,34.74845228]
[1741399909571,82.3,139.95,139.94,20.99215228]
[1741399910071,82.33,140.04,139.95,1.5173]
[1741399910270,82.3,140.03,140.01,20.99215228]
[1741399911380,82.3,140.03,140.01,28.13425228]
[1741399912202,82.3,140.03,140.02,20.99215228]
[1741399913495,82.3,140.03,140.02,28.13395228]
[1741399913980,82.3,140.03,140.01,1.5173]
[1741399913981,82.3,140.03,140.01,8.6595]
[1741399914183,82.3,140.03,140.01,1.5173]
[1741399914382,82.3,140.03,140.02,20.99215228]
[1741399914797,82.3,140.03,140.01,22.50945228]
[1741399915202,82.3,140.03,140.01,20.99215228]
[1741399915706,82.3,140.03,140.0,20.99215228]
[1741399917106,88.7273,140.03,139.99,20.99215228]
[1741399917308,109.71945228,140.03,139.97,22.50945228]
[1741399917495,82.3,140.02,139.97,22.50945228]
[1741399917807,88.7281,140.01,139.97,22.50945228]
[1741399918692,82.3,140.01,139.98,20.99215228]
[1741399919388,103.29215228,140.01,139.95,6.1178]
[1741399919600,109.72065228,140.0,139.94,21.02515228]
[1741399919902,82.3,139.99,139.94,21.02515228]
[1741399920288,82.3,139.99,139.95,20.99215228]
[1741399920608,82.3,139.99,139.97,20.99215228]
[1741399921706,82.3,139.99,139.94,0.033]
[1741399921889,82.3,139.99,139.98,20.99215228]
[1741399924495,82.3,139.99,139.96,20.99215228]
[1741399926600,82.3,139.99,139.98,20.99215228]
[1741399927201,82.3,139.99,139.96,0.033]
[1741399927516,82.3,139.99,139.96,21.02515228]
[1741399927825,82.3,139.99,139.98,20.99215228]
[1741399929419,82.3,139.99,139.97,20.99215228]
[1741399931897,82.3,139.99,139.98,20.99215228]
[1741399932221,82.3,139.99,139.97,20.99215228]
[1741399934917,82.3,139.99,139.98,20.99215228]
[1741399938236,82.3,139.99,139.98,28.13595228]
[1741399938949,82.3,139.99,139.98,20.99215228]
[1741399939318,82.3,139.99,139.97,20.99215228]
[1741399939924,82.3,139.99,139.97,21.02515228]
[1741399940120,82.33,139.99,139.97,21.02515228]
[1741399940925,82.33,139.99,139.98,20.99215228]
[1741399942819,82.33,139.99,139.97,0.033]
[1741399943642,82.33,139.99,139.97,21.02515228]
[1741399944946,82.33,139.99,139.97,0.033]
[1741399945319,82.33,139.99,139.97,21.02515228]
[1741399947344,82.33,139.99,139.97,13.44782954]
[1741399949945,88.7591,139.99,139.97,0.033]
[1741399950446,82.3,139.98,139.97,0.033]
[1741399952359,88.7294,139.98,139.97,0.033]
[1741399954448,82.3,139.98,139.97,0.033]
[1741399978973,88.7294,139.98,139.97,0.033]
[1741399979481,102.14422954,139.98,139.97,0.033]
[1741399979974,88.7294,139.98,139.97,0.033]
[1741399980281,6.4591,139.99,139.97,0.033]
[1741399980979,0.03,139.99,139.97,0.033]
[1741399984581,13.44482954,139.99,139.97,0.033]
[1741399986059,13.41482954,139.98,139.97,0.033]
[1741399986785,19.84422954,139.98,139.97,0.033]
[1741399988074,6.4294,139.98,139.97,0.033]
[1741399988281,7.9946,139.99,139.97,0.033]
[1741399989588,6.4592,139.99,139.97,0.033]
[1741399989783,0.03,139.99,139.97,0.033]
[1741399998789,0.03,139.99,139.98,13.41482954]
[1741400000492,11.21654566,140.03,139.98,38.41822954]
[1741400000687,11.21654566,140.03,140.02,13.41482954]
[1741400001097,0.03,140.04,140.02,13.41482954]
[1741400001392,0.03,140.04,140.03,13.41482954]
[1741400002498,0.03,140.04,140.03,20.55612954]
[1741400002975,0.03,140.04,140.03,13.41482954]
[1741400004589,0.03,140.04,140.03,20.55612954]
[1741400006788,0.03,140.04,140.03,27.43612954]
[1741400011397,0.0001,140.04,140.03,27.43612954]
[1741400011583,0.0001,140.04,140.03,28.50686959]
[1741400013089,0.0001,140.04,140.03,27.43612954]
[1741400024719,0.0001,140.04,140.03,27.46912954]
[1741400026917,0.0001,140.04,140.03,20.58912954]
[1741400027123,0.0001,140.04,140.03,27.44912954]
[1741400029308,0.0001,140.04,140.03,20.58912954]
[1741400029509,0.0001,140.04,140.03,7.1743]
[1741400030326,0.0001,140.04,140.03,0.033]
[1741400031003,0.0001,140.04,140.03,7.1743]
[1741400031413,0.0001,140.04,140.03,13.44782954]
[1741400033408,0.0001,140.04,140.03,20.58912954]
[1741400049243,0.0001,140.05,140.04,1.5606]
[1741400049427,0.0001,140.05,140.04,14.97542954]
[1741400050021,0.0001,140.05,140.04,22.11622954]
[1741400052527,0.03,140.09,140.04,22.11622954]
[1741400052853,0.03,140.09,140.08,13.41482954]
[1741400053424,0.03,140.09,140.04,26.5534]
[1741400053737,0.03,140.09,140.07,13.41482954]
[1741400054645,0.03,140.09,140.06,13.41482954]
[1741400054847,0.03,140.09,140.07,13.41482954]
[1741400055929,0.03,140.09,140.07,20.55372954]
[1741400056751,0.03,140.09,140.05,7.1403]
[1741400056931,0.03,140.09,140.07,13.41482954]
[1741400057855,0.03,140.09,140.07,20.55362954]
[1741400058053,0.03,140.09,140.08,13.41482954]
[1741400058346,0.03,140.09,140.07,13.41482954]
[1741400060556,13.44482954,140.09,140.05,0.033]
[1741400060760,0.03,140.09,140.05,0.033]
[1741400060954,0.03,140.09,140.05,13.44782954]
[1741400062455,0.03,140.09,140.06,20.55452954]
[1741400062960,0.03,140.09,140.08,13.41482954]
[1741400064359,0.03,140.09,140.07,13.41482954]
[1741400065062,0.03,140.09,140.08,13.41482954]
[1741400067459,0.03,140.09,140.08,20.55352954]
[1741400086575,0.03,140.13,140.08,20.55352954]
[1741400086780,0.03,140.13,140.11,13.41482954]
[1741400087166,0.03,140.13,140.1,13.41482954]
[1741400088279,0.03,140.13,140.12,13.41482954]
[1741400088581,16.0495752,140.2,140.12,75.5642477]
[1741400088879,16.0495752,140.2,140.18,13.41482954]
[1741400089666,67.299274,140.22,140.18,13.41482954]
[1741400090555,67.299274,140.22,140.18,20.54842954]
[1741400091858,0.03,140.24,140.18,20.54842954]
[1741400093580,0.03,140.24,140.18,13.41482954]
[1741400093873,13.41482954,140.23,140.18,13.41482954]
[1741400094077,1.5358,140.2,140.12,15.093]
[1741400094288,1.5358,140.2,140.15,13.41482954]
[1741400095364,6.4498,140.19,140.15,13.41482954]
[1741400097163,6.4498,140.19,140.16,13.41482954]
[1741400097979,0.03,140.19,140.17,13.41482954]
[1741400098289,0.03,140.19,140.18,13.41482954]
[1741400100755,0.03,140.19,140.18,27.38842954]
[1741400101283,0.03,140.19,140.18,20.25482954]
[1741400102398,0.03,140.19,140.18,27.38842954]
[1741400102899,0.03,140.19,140.18,20.25482954]
[1741400103070,0.03,140.19,140.17,13.41482954]
[1741400103888,0.03,140.19,140.15,13.41482954]
[1741400104263,0.03,140.19,140.16,13.41482954]
[1741400105763,0.03,140.19,140.17,13.41482954]
[1741400106970,0.03,140.19,140.18,13.41482954]
[1741400108060,0.03,140.19,140.17,13.41482954]
[1741400108264,0.03,140.19,140.15,13.41482954]
[1741400108968,95.71482954,140.18,140.13,0.033]
[1741400109280,13.41482954,140.17,140.13,0.033]
[1741400109581,1.5684,140.14,140.13,0.033]
[1741400110189,7.9905,140.14,140.13,0.033]
[1741400110597,6.4218,140.15,140.13,0.033]
[1741400111278,82.3,140.16,140.13,0.033]
[1741400111476,82.3,140.16,140.13,20.95439209]
[1741400111672,82.3,140.16,140.14,20.92139209]
[1741400111885,1.5684,140.18,140.14,20.92139209]
[1741400112271,7.9888,140.18,140.13,20.95439209]
[1741400112488,7.9888,140.18,140.13,0.033]
[1741400112680,7.9888,140.18,140.13,20.95439209]
[1741400113472,20.92139209,140.16,140.13,0.033]
[1741400114085,20.92139209,140.17,140.13,0.033]
[1741400114284,82.3,140.16,140.13,0.033]
[1741400114506,20.92139209,140.15,140.13,0.033]
[1741400115000,103.22139209,140.16,140.13,0.033]
[1741400115677,82.3,140.16,140.13,0.033]
[1741400116671,22.48979209,140.18,140.15,20.92139209]
[1741400116672,1.5684,140.18,140.15,20.92139209]
[1741400117896,7.9888,140.18,140.13,20.95439209]
[1741400118275,28.91019209,140.18,140.13,0.033]
[1741400118501,103.22139209,140.17,140.13,0.033]
[1741400119097,20.92139209,140.16,140.13,0.033]
[1741400119267,20.92139209,140.14,140.13,0.033]
[1741400119468,27.34349209,140.14,140.1,0.033]
[1741400119675,20.92139209,140.11,140.1,0.033]
[1741400120381,8.1082,140.12,140.1,0.033]
[1741400120569,82.3,140.13,140.1,20.95439209]
[1741400120907,82.3,140.13,140.11,20.92139209]
[1741400121797,8.1082,140.16,140.11,20.92139209]
[1741400122107,111.32959209,140.16,140.11,20.92139209]
[1741400122274,117.75079209,140.16,140.11,20.92139209]
[1741400123000,117.75079209,140.16,140.1,20.95439209]
[1741400123201,20.92139209,140.14,140.1,0.033]
[1741400123402,20.92139209,140.12,140.1,0.033]
[1741400123605,27.34429209,140.13,140.1,0.033]
[1741400124202,20.92139209,140.11,140.1,0.033]
[1741400125681,27.34489209,140.11,140.1,0.033]
[1741400129409,82.3,140.09,140.05,0.033]
[1741400129604,20.92139209,140.06,140.05,0.033]
[1741400130189,27.34709209,140.07,140.05,0.033]
[1741400130604,20.92139209,140.06,140.05,0.033]
[1741400131316,20.92139209,140.06,140.03,0.033]
[1741400131317,6.2096,140.05,140.03,0.033]
[1741400131611,20.92139209,140.04,140.03,0.033]
[1741400131989,27.13099209,140.05,140.03,0.033]
[1741400132191,33.55759209,140.05,140.03,0.033]
[1741400132792,8.014,140.06,140.03,0.033]
[1741400133315,28.93539209,140.06,140.03,0.033]
[1741400133491,8.014,140.06,140.03,0.033]
[1741400133685,20.92139209,140.05,140.03,0.033]
[1741400134324,22.50949209,140.06,140.03,0.033]
[1741400134497,28.93539209,140.06,140.03,0.033]
[1741400134701,8.014,140.06,140.03,0.033]
[1741400134918,20.92139209,140.05,140.03,0.033]
[1741400135122,20.92139209,140.04,140.03,0.033]
[1741400135719,20.92139209,140.05,140.03,0.033]
[1741400135916,20.92139209,140.04,140.03,0.033]
[1741400136622,6.4267,140.04,140.03,0.033]
[1741400136824,27.34809209,140.04,140.03,0.033]
[1741400137208,27.34809209,140.04,140.03,0.0001]
[1741400140928,17.6526,140.06,140.03,0.0001]
[1741400141136,20.92139209,140.04,140.03,0.0001]
[1741400143215,27.34809209,140.04,140.03,0.0001]
[1741400148130,34.18809209,140.04,140.03,0.0001]
[1741400149838,84.18809209,140.04,140.03,0.0001]
[1741400150354,20.92139209,140.0,139.99,0.033]
[1741400151657,27.34989209,140.0,139.99,0.033]
[1741400153137,27.34989209,140.0,139.99,0.0001]
[1741400155941,49.83648418,140.0,139.99,0.0001]
[1741400156252,99.83648418,140.0,139.99,0.0001]
[1741400157265,49.83648418,140.0,139.99,0.0001]
[1741400158070,28.91509209,140.0,139.99,0.0001]
[1741400159751,34.18989209,140.0,139.99,0.0001]
[1741400162161,121.18268418,140.0,139.97,0.0001]
[1741400162366,20.92139209,139.98,139.97,0.0001]
[1741400163243,20.92139209,139.98,139.95,0.033]
[1741400163540,20.92139209,139.96,139.95,0.033]
[1741400164246,27.35179209,139.96,139.95,0.033]
[1741400164957,82.3,139.95,139.94,0.033]
[1741400165149,110.04139209,139.95,139.94,0.033]
[1741400166473,95.5508,139.95,139.94,0.033]
[1741400167771,34.17219209,139.95,139.94,0.033]
[1741400168666,13.2508,139.95,139.94,0.033]
[1741400170974,34.17219209,139.95,139.94,0.033]
[1741400171880,89.4445,139.97,139.94,0.033]
[1741400172050,82.3,139.97,139.95,20.92139209]
[1741400172377,82.3,139.97,139.94,20.95439209]
[1741400172562,82.3,139.97,139.95,20.92139209]
[1741400172766,82.3,139.97,139.94,20.95439209]
[1741400173597,82.3,140.0,139.96,28.06609209]
[1741400173758,82.3,140.0,139.95,28.71309209]
[1741400173965,110.36439209,140.0,139.95,28.71309209]
[1741400174167,110.36439209,140.0,139.95,7.7917]
[1741400174366,110.36439209,140.0,139.95,28.71309209]
[1741400175469,89.443,140.0,139.95,28.71309209]
[1741400175762,82.3,140.0,139.96,20.92139209]
[1741400175963,82.3,140.0,139.95,7.7917]
[1741400175964,82.3,140.0,139.97,20.92139209]
[1741400176167,82.3,140.0,139.98,20.92139209]
[1741400176554,89.4414,140.03,139.99,20.92139209]
[1741400176980,82.3,140.03,140.01,20.92139209]
[1741400177147,0.03,140.04,140.02,20.92139209]
[1741400177371,0.03,140.04,140.03,20.92139209]
[1741400177792,0.03,140.04,140.03,28.06269209]
[1741400179997,0.03,140.04,140.03,20.92139209]
[1741400180201,0.03,140.04,140.03,28.06269209]
[1741400180801,0.03,140.05,140.03,28.06269209]
[1741400181005,0.03,140.05,140.04,20.92139209]
[1741400181882,0.03,140.05,140.04,28.06219209]
[1741400184204,0.03,140.12,140.04,45.91419209]
[1741400184378,0.03,140.12,140.1,20.92139209]
[1741400184585,0.03,140.12,140.11,20.92139209]
[1741400184996,0.03,140.12,140.08,7.8101]
[1741400184997,0.03,140.12,140.09,20.92139209]
[1741400185175,0.03,140.12,140.08,28.73149209]
[1741400185601,0.03,140.12,140.08,6.1689]
[1741400185781,0.03,140.12,140.07,20.92139209]
[1741400186299,7.1667,140.12,140.07,20.92139209]
[1741400187681,0.03,140.12,140.08,20.92139209]
[1741400188003,0.03,140.12,140.09,20.92139209]
[1741400189109,0.03,140.12,140.08,20.92139209]
[1741400189294,0.03,140.12,140.07,20.92139209]
[1741400189884,0.03,140.12,140.04,8.7818]
[1741400189885,20.92139209,140.1,140.04,1.6412]
[1741400190086,110.04139209,140.11,140.05,20.92139209]
[1741400190394,110.04139209,140.11,140.04,1.6412]
[1741400190395,89.12,140.11,140.06,20.92139209]
[1741400190600,89.12,140.11,140.04,1.6412]
[1741400190601,89.12,140.11,140.07,20.92139209]
[1741400190906,6.82,140.11,140.09,20.92139209]
[1741400191103,7.1668,140.12,140.09,20.92139209]
[1741400191304,0.03,140.12,140.1,20.92139209]
[1741400191810,7.1668,140.12,140.08,20.92139209]
[1741400192118,7.1668,140.12,140.09,20.92139209]
[1741400192410,7.1668,140.12,140.1,20.92139209]
[1741400192913,7.1668,140.12,140.07,13.7846]
[1741400193104,0.03,140.12,140.09,20.92139209]
[1741400193719,0.03,140.12,140.08,20.92139209]
[1741400194013,0.03,140.12,140.1,20.92139209]
[1741400195514,0.03,140.12,140.11,20.92139209]
[1741400198914,0.03,140.12,140.11,28.05859209]
[1741400199120,0.03,140.12,140.11,20.92139209]
[1741400200939,0.03,140.18,140.12,6.2604]
[1741400201235,0.03,140.18,140.17,20.92139209]
[1741400201620,0.03,140.18,140.17,28.05549209]
[1741400202027,0.03,140.18,140.16,20.92139209]
[1741400202226,0.03,140.18,140.13,7.1362]
[1741400202426,0.03,140.18,140.16,20.92139209]
[1741400202631,0.03,140.18,140.15,20.92139209]
[1741400202930,0.03,140.18,140.14,20.92139209]
[1741400203136,0.03,140.18,140.15,20.92139209]
[1741400203840,0.03,140.18,140.14,20.92139209]
[1741400205746,0.03,140.18,140.12,13.397]
[1741400205924,20.95139209,140.18,140.12,20.92139209]
[1741400206441,20.92139209,140.16,140.11,27.74139209]
[1741400206639,20.92139209,140.16,140.1,20.92139209]
[1741400206838,82.33,140.18,140.09,20.92139209]
[1741400206839,20.92139209,140.15,140.09,20.92139209]
[1741400207146,20.92139209,140.14,140.08,20.92139209]
[1741400207532,20.92139209,140.11,140.05,20.92139209]
[1741400207733,7.1382,140.09,140.04,20.92139209]
[1741400208726,7.1382,140.09,140.05,20.92139209]
[1741400209126,7.1382,140.09,140.04,20.92139209]
[1741400209637,20.92139209,140.1,140.04,20.92139209]
[1741400209844,28.05919209,140.1,140.05,20.92139209]
[1741400210038,34.85849209,140.12,140.06,20.92139209]
[1741400210243,6.8,140.12,140.08,20.92139209]
[1741400210552,83.9184,140.13,140.09,20.92139209]
[1741400210728,83.9184,140.13,140.02,24.9963]
[1741400210729,83.9184,140.13,140.08,20.92139209]
[1741400211044,83.9184,140.13,140.09,20.92139209]
[1741400211045,82.3,140.13,140.09,20.92139209]
[1741400211251,82.3,140.13,140.1,20.92139209]
[1741400212024,82.3,140.13,140.1,28.05899209]
[1741400212424,7.1353,140.15,140.1,20.92139209]
[1741400213152,28.05669209,140.15,140.1,20.92139209]
[1741400213345,20.92139209,140.13,140.07,20.92139209]
[1741400214351,20.92139209,140.11,140.05,20.92139209]
[1741400214549,20.92139209,140.1,140.04,20.92139209]
[1741400214752,20.92139209,140.09,140.04,20.92139209]
[1741400215537,7.1387,140.08,140.03,20.92139209]
[1741400216053,28.06009209,140.08,140.02,20.92139209]
[1741400216553,20.92139209,140.07,140.03,0.033]
[1741400217545,7.1403,140.05,140.03,0.033]
[1741400218451,20.92139209,140.07,140.03,0.033]
[1741400218681,7.1399,140.06,140.03,0.033]
[1741400219225,28.06129209,140.06,140.03,0.033]
[1741400219850,20.92139209,140.05,140.03,0.033]
[1741400220427,20.92139209,140.04,140.03,0.033]
[1741400221335,28.06219209,140.04,140.03,0.033]
[1741400222162,83.8667,140.05,140.03,0.033]
[1741400222545,1.5667,140.05,140.03,0.033]
[1741400223165,29.62849209,140.05,140.03,0.033]
[1741400223470,20.92139209,140.04,140.03,0.033]
[1741400224141,29.62849209,140.05,140.03,0.033]
[1741400224968,20.92139209,140.04,140.03,0.033]
[1741400225348,28.06219209,140.04,139.95,20.92139209]
[1741400225557,20.92139209,140.01,139.95,20.92139209]
[1741400226473,82.3,140.03,139.96,20.92139209]
[1741400226777,7.1408,140.04,139.99,20.92139209]
[1741400227151,20.92139209,140.02,139.96,20.92139209]
[1741400227570,110.36219209,140.04,139.98,20.92139209]
[1741400227958,89.4408,140.04,139.99,20.92139209]
[1741400228265,89.4408,140.04,140.03,0.033]
[1741400228650,82.3,140.04,140.03,0.033]
[1741400229699,110.36219209,140.04,140.03,0.033]
[1741400230074,110.36219209,140.04,139.94,20.95439209]
[1741400230075,45.91419209,140.04,139.94,20.95439209]
[1741400230277,20.92139209,140.0,139.94,20.95439209]
[1741400230581,20.92139209,140.01,139.95,20.92139209]
[1741400231678,7.1428,140.0,139.95,20.92139209]
[1741400232173,20.92139209,140.02,139.95,20.92139209]
[1741400232475,110.36309209,140.03,139.97,20.92139209]
[1741400233254,122.98000112,140.03,139.97,33.53830112]
[1741400233976,82.3,140.03,139.99,33.53830112]
[1741400234361,89.4413,140.03,139.98,33.53830112]
[1741400235759,1.5667,140.05,140.01,33.53830112]
[1741400236075,40.67750112,140.07,140.01,33.53830112]
[1741400236255,33.53830112,140.06,140.0,33.53830112]
[1741400236576,40.67750112,140.07,140.0,33.53830112]
[1741400239170,33.53830112,140.04,139.98,33.53830112]
[1741400239371,33.53830112,140.04,139.97,33.53830112]
[1741400239787,33.53830112,140.04,139.98,33.53830112]
[1741400239979,33.53830112,140.04,139.97,33.53830112]
[1741400240288,115.83830112,140.06,140.0,33.53830112]
[1741400240499,115.83830112,140.06,140.0,33.57130112]
[1741400241075,33.53830112,140.05,140.0,0.033]
[1741400241275,7.1408,140.04,140.0,0.033]
[1741400241475,40.67910112,140.04,140.0,0.033]
[1741400241884,7.1408,140.04,140.0,0.033]
[1741400242278,40.67910112,140.04,140.0,0.033]
[1741400243796,82.3,140.06,140.02,33.53830112]
[1741400243965,7.1401,140.06,140.02,33.53830112]
[1741400244170,7.1694,140.07,140.02,33.53830112]
[1741400245481,0.03,140.07,140.02,40.68000112]
[1741400245679,0.03,140.07,140.04,33.53830112]
[1741400247283,0.03,140.07,140.03,33.53830112]
[1741400247487,0.03,140.07,140.02,33.53830112]
[1741400248801,0.03,140.07,140.03,33.53830112]
[1741400249004,0.03,140.07,140.05,33.53830112]
[1741400249304,0.03,140.07,140.06,33.53830112]
[1741400250190,0.03,140.07,140.05,33.53830112]
[1741400250399,0.03,140.07,140.04,33.53830112]
[1741400251407,0.03,140.07,140.03,33.53830112]
[1741400253110,0.03,140.07,140.02,33.53830112]
[1741400253406,20.9782914,140.07,140.01,20.9482914]
[1741400253606,22.5109914,140.07,140.01,20.9482914]
[1741400254305,20.9482914,140.06,140.0,20.9812914]
[1741400254890,0.03,140.07,140.03,20.9482914]
[1741400255203,0.03,140.07,140.04,20.9482914]
[1741400255601,0.03,140.07,140.06,20.9482914]
[1741400256501,0.03,140.07,140.04,20.9482914]
[1741400256702,0.03,140.07,140.03,20.9482914]
[1741400257294,0.03,140.07,140.04,20.9482914]
[1741400257493,0.03,140.07,140.05,20.9482914]
[1741400257692,0.03,140.07,140.06,20.9482914]
[1741400258309,0.03,140.07,140.05,20.9482914]
[1741400259116,0.03,140.07,140.06,20.9482914]
[1741400263719,0.03,140.07,140.06,28.0879914]
[1741400264313,0.03,140.07,140.06,20.9482914]
[1741400268423,0.03,140.07,140.06,28.0879914]
[1741400269421,0.03,140.07,140.06,20.9482914]
[1741400270427,0.03,140.07,140.06,28.0879914]
[1741400275132,0.03,140.07,140.06,20.9482914]
[1741400275320,0.03,140.07,140.05,20.9482914]
[1741400276240,0.03,140.07,140.04,20.9482914]
[1741400276530,0.03,140.07,140.05,20.9482914]
[1741400277325,0.03,140.07,140.04,20.9482914]
[1741400278330,0.03,140.07,140.03,0.033]
[1741400278528,0.03,140.07,140.04,20.9482914]
[1741400278731,0.03,140.07,140.05,20.9482914]
[1741400279038,20.9782914,140.07,140.03,0.033]
[1741400279508,0.03,140.07,140.03,20.9812914]
[1741400279703,0.03,140.07,140.04,20.9482914]
[1741400280013,0.03,140.07,140.06,20.9482914]
[1741400281038,0.03,140.07,140.04,20.9482914]
[1741400282142,0.03,140.07,140.06,20.9482914]
[1741400282512,0.03,140.07,140.06,28.0879914]
[1741400283737,0.03,140.12,140.06,183.6362828]
[1741400283938,0.03,140.12,140.11,20.9482914]
[1741400285439,0.03,140.12,140.11,28.0854914]
[1741400285640,0.03,140.12,140.11,20.9482914]
[1741400286726,0.03,140.12,140.11,28.0854914]
[1741400286933,0.03,140.12,140.11,20.9482914]
[1741400288152,0.03,140.12,140.11,28.0854914]
[1741400293066,0.03,140.13,140.11,162.6854914]
[1741400293231,0.03,140.13,140.12,20.9482914]
[1741400293430,0.03,140.13,140.12,27.7282914]
[1741400294443,0.03,140.18,140.17,20.9482914]
[1741400294642,0.03,140.18,140.16,20.9482914]
[1741400294854,0.03,140.18,140.15,20.9482914]
[1741400296557,0.03,140.18,140.14,20.9482914]
[1741400296762,20.9482914,140.17,140.12,20.9482914]
[1741400296942,0.03,140.18,140.13,20.9482914]
[1741400297938,0.03,140.18,140.14,20.9482914]
[1741400298160,7.1636,140.18,140.14,20.9482914]
[1741400299665,20.9782914,140.18,140.12,20.9482914]
[1741400300455,0.03,140.18,140.13,20.9482914]
[1741400302564,0.03,140.18,140.14,20.9482914]
[1741400302942,0.03,140.18,140.13,20.9482914]
[1741400303141,20.9782914,140.18,140.12,20.9482914]
[1741400303737,0.03,140.18,140.13,20.9482914]
[1741400304368,20.9782914,140.18,140.12,20.9482914]
[1741400304570,22.4942914,140.17,140.11,20.9482914]
[1741400305050,1.546,140.17,140.12,20.9482914]
[1741400305768,1.546,140.17,140.14,20.9482914]
[1741400306556,8.6802,140.17,140.09,7.1382]
[1741400306760,8.6802,140.17,140.13,20.9482914]
[1741400307265,8.6802,140.17,140.13,13.38542752]
[1741400307767,8.6802,140.17,140.14,13.38542752]
[1741400307768,1.546,140.17,140.14,13.38542752]
[1741400308468,7.1638,140.18,140.14,13.38542752]
[1741400308650,0.03,140.18,140.16,13.38542752]
[1741400309046,0.03,140.18,140.17,13.38542752]
[1741400310846,0.03,140.18,140.13,6.78]
[1741400311053,0.03,140.18,140.13,20.19842752]
[1741400311372,0.03,140.18,140.14,20.91311093]
[1741400311551,0.03,140.18,140.15,20.91311093]
[1741400316697,0.03,140.18,140.13,20.94611093]
[1741400318662,0.03,140.18,140.15,20.91311093]
[1741400319166,0.03,140.18,140.14,20.91311093]
[1741400319366,0.03,140.18,140.13,20.94611093]
[1741400320086,0.03,140.18,140.14,20.91311093]
[1741400320288,0.03,140.18,140.15,20.91311093]
[1741400321488,0.03,140.18,140.14,20.91311093]
[1741400322886,0.03,140.18,140.15,20.91311093]
[1741400333307,0.03,140.18,140.15,13.38037133]
[1741400333907,0.03,140.19,140.15,13.38037133]
[1741400335312,0.03,140.18,140.15,13.38037133]
[1741400335483,0.03,140.18,140.14,13.38037133]